fUSD/lending_fUSD_20240625
["ID","MTS","AMOUNT","RATE_DAILY","PERIOD"]
[330360962,1719333037888,-27230.27163246,0.00015,2]
[330360963,1719333037899,-5000.0,0.00015,2]
[330360964,1719333037909,-215.4,0.0001504,2]
[330360965,1719333037919,-667.0,0.000152,2]
[330360966,1719333037930,-3336.0,0.000152,2]
[330360967,1719333037942,-172.41,0.00015323,2]
[330360968,1719333037952,-155.04064792,0.000155,2]
[330360969,1719333037963,-327.92162053,0.00015546,2]
[330360970,1719333037973,-4741.66312138,0.00015547,2]
[330360971,1719333037987,-9299.88489629,0.00015547,2]
[330360972,1719333037998,-1319.22371214,0.00015547,2]
[330360973,1719333038009,-173.98,0.00015716,2]
[330360974,1719333038020,-684.3304205,0.00015755,2]
[330360975,1719333038031,-215.4,0.00015756,2]
[330360976,1719333038041,-150.0,0.00015873,2]
[330360977,1719333038052,-1086.70614953,0.00016,2]
[330360978,1719333038078,-304.6,0.00016,2]
[330360979,1719333038091,-6389.49405049,0.00016,2]
[330360980,1719333038104,-7219.19979998,0.00016,2]
[330360981,1719333038115,-14041.54801767,0.00016194,2]
[330360982,1719333038125,-73.91168103,0.00016194,2]
[330360983,1719333038163,-302.0,0.00016194,2]
[330361037,1719333039493,-943.31203111,0.00016194,2]
[330361038,1719333039505,-853.06,0.00016274,2]
[330361039,1719333039517,-418.51,0.00016274,2]
[330361040,1719333039527,-853.06,0.00016274,2]
[330361041,1719333039545,-418.51,0.00016274,2]
[330361042,1719333039556,-418.51,0.00016274,2]
[330361043,1719333039568,-853.06,0.00016274,2]
[330361044,1719333039580,-853.06,0.00016274,2]
[330361045,1719333039594,-418.03,0.00016274,2]
[330361046,1719333039606,-182.75,0.00016274,2]
[330361047,1719333039619,-167.0,0.00016291,2]
[330361048,1719333039629,-215.4,0.00016472,2]
[330361049,1719333039640,-1000.0,0.00016532,2]
[330361050,1719333039651,-167.0,0.00016829,2]
[330361051,1719333039662,-14041.54801767,0.0001684,2]
[330361052,1719333039672,-1319.22371214,0.0001684,2]
[330361053,1719333039683,-555.35,0.00017184,2]
[330361054,1719333039693,-215.4,0.00017189,2]
[330361055,1719333039703,-193.56,0.00017233,2]
[330361056,1719333039713,-150.0,0.00017243,2]
[330361057,1719333039722,-259.06347,0.0001735,2]
[330361058,1719333039733,-167.0,0.00017367,2]
[330361059,1719333039743,-173.98,0.00017462,2]
[330361060,1719333039754,-14041.54801767,0.00017487,2]
[330361061,1719333039764,-1319.22371214,0.00017487,2]
[330361062,1719333039775,-318.7029894,0.00017805,2]
[330361063,1719333039786,-182166.59389586,0.00017807,2]
[330361064,1719333039796,-167.0,0.00017905,2]
[330361065,1719333039807,-202.05047868,0.00018131,2]
[330361066,1719333039818,-10000.0,0.00018132,2]
[330361067,1719333039828,-14041.54801767,0.00018134,2]
[330361068,1719333039839,-1319.22371214,0.00018134,2]
[330361069,1719333039850,-2928.10982847,0.00018191,2]
[330361070,1719333039861,-418.51,0.00018192,2]
[330361071,1719333039872,-1164.65,0.00018192,2]
[330361072,1719333039883,-418.51,0.00018192,2]
[330361073,1719333039893,-317.25,0.00018192,2]
[330361074,1719333039904,-1000.0,0.00018369,2]
[330361075,1719333039915,-400.0,0.000184,6]
[330361076,1719333039926,-167.0,0.00018443,2]
[330361077,1719333039937,-900.0,0.000185,6]
[330361078,1719333039948,-1656.0,0.00018511,2]
[330361079,1719333039960,-150.0,0.00018547,2]
[330361080,1719333039971,-300.0,0.00018567,2]
[330361081,1719333039982,-150.0,0.00018568,2]
[330361082,1719333039993,-150.0,0.00018573,2]
[330361083,1719333040003,-172.41,0.00018574,2]
[330361084,1719333040014,-150.0,0.0001859,2]
[330361085,1719333040025,-1400.0,0.000186,6]
[330361086,1719333040036,-225.08047332,0.00018658,2]
[330361087,1719333040047,-150.0,0.00018659,2]
[330361088,1719333040058,-150.0,0.00018666,2]
[330361089,1719333040071,-150.0,0.00018671,2]
[330361090,1719333040082,-150.0,0.00018686,2]
[330361091,1719333040092,-650.69302056,0.00018699,2]
[330361092,1719333040106,-1900.0,0.000187,6]
[330361093,1719333040118,-150.0,0.00018705,2]
[330361094,1719333040130,-150.0,0.00018714,2]
[330361095,1719333040141,-155.0,0.00018733,2]
[330361096,1719333040152,-150.0,0.00018734,2]
[330361097,1719333040163,-150.0,0.00018766,2]
[330361098,1719333040174,-14041.54801767,0.00018781,2]
[330361099,1719333040185,-1319.22371214,0.00018781,2]
[330361100,1719333040195,-150.0,0.00018783,2]
[330361101,1719333040206,-150.0,0.00018783,2]
[330361102,1719333040217,-318.23554472,0.00018783,2]
[330361103,1719333040229,-150.0,0.00018784,2]
[330361104,1719333040240,-150.0,0.00018788,2]
[330361105,1719333040251,-625.2,0.00018791,2]
[330361106,1719333040262,-226.73,0.00018792,2]
[330361107,1719333040273,-150.0,0.00018792,2]
[330361108,1719333040284,-2400.0,0.000188,6]
[330361109,1719333040294,-150.0,0.00018829,2]
[330361110,1719333040305,-180.83921364,0.00018843,2]
[330361111,1719333040316,-155.0,0.00018844,2]
[330361112,1719333040327,-711.81795544,0.00018844,2]
[330361113,1719333040338,-711.81795544,0.00018844,2]
[330361114,1719333040349,-535.59904363,0.00018848,2]
[330361115,1719333040359,-300.0,0.00018877,2]
[330361116,1719333040370,-150.0,0.00018877,2]
[330361117,1719333040380,-150.0,0.00018877,2]
[330361118,1719333040390,-527.79,0.00018877,2]
[330361119,1719333040401,-164.65,0.00018877,2]
[330361120,1719333040411,-423.79,0.00018877,2]
[330361121,1719333040420,-354.39,0.00018877,2]
[330361122,1719333040430,-150.0,0.00018877,2]
[330361123,1719333040440,-527.79,0.00018877,2]
[330361124,1719333040450,-423.79,0.00018877,2]
[330361125,1719333040459,-164.65,0.00018877,2]
[330361126,1719333040470,-150.0,0.00018877,2]
[330361127,1719333040480,-150.0,0.00018877,2]
[330361128,1719333040491,-150.0,0.00018877,2]
[330361129,1719333040501,-354.39,0.00018877,2]
[330361130,1719333040511,-150.0,0.00018877,2]
[330361131,1719333040521,-164.65,0.00018877,2]
[330361132,1719333040531,-354.39,0.00018877,2]
[330361133,1719333040542,-527.79,0.00018877,2]
[330361134,1719333040553,-150.0,0.00018877,2]
[330361135,1719333040562,-423.79,0.00018877,2]
[330361136,1719333040574,-150.0,0.00018877,2]
[330361137,1719333040585,-150.0,0.00018877,2]
[330361138,1719333040595,-527.79,0.00018877,2]
[330361139,1719333040605,-150.0,0.00018877,2]
[330361140,1719333040615,-354.39,0.00018877,2]
[330361141,1719333040627,-164.65,0.00018877,2]
[330361142,1719333040637,-423.79,0.00018877,2]
[330361143,1719333040647,-526.34,0.00018877,2]
[330361144,1719333040658,-354.39,0.00018877,2]
[330361145,1719333040668,-150.0,0.00018877,2]
[330361146,1719333040679,-164.4,0.00018877,2]
[330361147,1719333040689,-422.54,0.00018877,2]
[330361148,1719333040699,-707.68,0.00018877,2]
[330361149,1719333040710,-654.0,0.00018891,2]
[330361150,1719333040720,-2409.0,0.00018892,2]
[330361151,1719333040730,-1303.0,0.00018892,2]
[330361152,1719333040740,-1981.0,0.00018892,2]
[330361153,1719333040750,-3197.0,0.00018892,2]
[330361154,1719333040760,-547.0,0.00018892,2]
[330361155,1719333040770,-1270.0,0.00018892,2]
[330361156,1719333040780,-359.0,0.00018892,2]
[330361157,1719333040791,-1654.0,0.00018892,2]
[330361158,1719333040801,-1830.0,0.00018892,2]
[330361159,1719333040811,-291.0,0.00018892,2]
[330361160,1719333040826,-5167.0,0.00018892,2]
[330361161,1719333040836,-20389.332,0.00018892,2]
[330361162,1719333040846,-1371.399,0.00018892,2]
[330361163,1719333040856,-446.0,0.00018892,2]
[330361164,1719333040866,-151.0,0.00018892,2]
[330361165,1719333040876,-540.604809,0.00018892,2]
[330361166,1719333040886,-540.604809,0.00018892,2]
[330361167,1719333040896,-152.121593,0.00018892,2]
[330361168,1719333040905,-151.0,0.00018892,2]
[330361169,1719333040915,-205.862473,0.00018892,2]
[330361170,1719333040924,-400.0,0.000189,6]
[330361171,1719333040933,-167.0,0.0001898,2]
[330361172,1719333040943,-258.968026,0.00019078,2]
[330361173,1719333040952,-151.0,0.00019078,2]
[330361174,1719333040961,-176.13900663,0.00019078,2]
[330361175,1719333040970,-151.0,0.00019078,2]
[330361176,1719333040979,-151.0,0.00019078,2]
[330361177,1719333040989,-151.0,0.00019078,2]
[330361178,1719333040998,-151.0,0.00019078,2]
[330361179,1719333041007,-13895.69057389,0.00019078,2]
[330361180,1719333041017,-486.74458874,0.00019078,2]
[330361181,1719333041027,-151.0,0.00019078,2]
[330361182,1719333041037,-230.721374,0.00019078,2]
[330361183,1719333041047,-230.721374,0.00019078,2]
[330361184,1719333041056,-151.0,0.00019078,2]
[330361185,1719333041067,-242.764214,0.00019078,2]
[330361186,1719333041077,-242.764214,0.00019078,2]
[330361187,1719333041087,-185.14819565,0.00019078,3]
[330361188,1719333041096,-26533.47344026,0.000191,2]
[330361189,1719333041106,-2004.4104095,0.00019127,2]
[330361190,1719333041116,-151.0,0.00019128,2]
[330361191,1719333041125,-660.4164294,0.00019159,2]
[330361192,1719333041135,-368.41465211,0.0001916,2]
[330361193,1719333041144,-150.0,0.00019163,2]
[330361194,1719333041154,-296428.44441231,0.00019178,7]
[330361242,1719333041861,-3210.35,0.00017244,2]
[330361244,1719333041872,-617.0,0.00018892,2]
[330361246,1719333041881,-5661.49561737,0.00019178,7]
[330361254,1719333041943,-3532.00000001,0.00019178,7]
[330361256,1719333041954,-80879.70179123,0.00019178,7]
[330361318,1719333042924,-6822.38813553,0.00019178,7]
[330361320,1719333045609,-336.19305709,0.00014999,2]
[330361321,1719333045618,-133.11489844,0.00018431,2]
[330361322,1719333045633,-678.88510156,0.00018431,2]
[330361323,1719333045643,-300.0,0.000185,6]
[330361324,1719333045653,-8028.27221717,0.00019178,7]
[330361325,1719333045705,-3409.9853347,0.00019178,7]
[330361326,1719333045716,-361.43872924,0.00019178,7]
[330361327,1719333045737,-105042.44250455,0.00019178,7]
[330361328,1719333045749,-45377.42693702,0.00019178,7]
[330361330,1719333045864,-424.35038744,0.00019178,7]
[330361332,1719333045875,-904.1874257,0.00019178,7]
[330361342,1719333200822,1000.0,0.00025099,120]
[330361343,1719333200941,1000.0,0.00025974,120]
[330361344,1719333208833,200.0,0.0002563,120]
[330361346,1719333304500,364.15,0.00018849,30]
[330361361,1719333432944,708.0,0.00026,120]
[330361362,1719333467983,150.0,0.00012092,2]
[330361363,1719333468005,150.0,0.00012092,2]
[330361364,1719333468032,150.0,0.00012092,2]
[330361365,1719333468056,150.0,0.00012092,2]
[330361366,1719333468358,150.0,0.00012092,2]
[330361367,1719333468386,150.0,0.00012092,2]
[330361368,1719333468410,150.0,0.00012092,2]
[330361369,1719333468433,150.0,0.00012092,2]
[330361370,1719333468456,150.0,0.00012092,2]
[330361371,1719333468481,150.0,0.00012092,2]
[330361372,1719333468503,155.62838296,0.00012092,2]
[330361373,1719333468528,10000.0,0.00012092,2]
[330361374,1719333468552,7747.66161704,0.00012092,2]
[330361378,1719333531372,1000.0,0.00012092,2]
[330361379,1719333548411,1252.33838296,0.00012092,2]
[330361380,1719333548434,10000.0,0.00012092,2]
[330361381,1719333548476,9053.84277294,0.00012092,2]
[330361384,1719333601081,549.65,0.00010175,2]
[330361385,1719333601454,396.50722706,0.00012438,2]
[330361386,1719333601476,153.14277294,0.00012438,2]
[330361387,1719333603352,150.0,0.00012092,2]
[330361388,1719333603546,150.0,0.00012092,2]
[330361389,1719333660819,9546.85722706,0.00012092,2]
[330361390,1719333660843,10000.0,0.00012092,2]
[330361391,1719333660868,759.32392884,0.00012092,2]
[330361393,1719333771825,873.74990009,0.00012092,2]
[330361394,1719333845964,333.8,0.00018849,30]
[330361395,1719333863258,-300.0,0.00029895,15]
[330361396,1719333863284,-500.0,0.00029895,10]
[330361397,1719333863308,-264.63267929,0.00029895,10]
[330361398,1719333863333,-275.0,0.00029895,14]
[330361399,1719333863358,-897.31586347,0.00029895,15]
[330361400,1719333863382,-173.13374168,0.00029895,10]
[330361401,1719333863408,-630.34494915,0.00029895,20]
[330361402,1719333863433,-56976.61022405,0.00029895,120]
[330361403,1719333863458,-1000.0,0.00029895,30]
[330361404,1719333863482,-366.88606537,0.00029895,120]
[330361405,1719333863505,-539.32339157,0.00029895,30]
[330361406,1719333863530,-1000.0,0.00029895,60]
[330361407,1719333863555,-1000.0,0.00029895,30]
[330361408,1719333863578,-1000.0,0.00029895,30]
[330361409,1719333863602,-1000.0,0.00029895,30]
[330361410,1719333863626,-1000.0,0.00029895,30]
[330361411,1719333863650,-1000.0,0.00029895,60]
[330361412,1719333863674,-467.95317227,0.00029895,60]
[330361413,1719333863698,-1000.0,0.00029895,30]
[330361414,1719333863724,-1000.0,0.00029895,30]
[330361415,1719333863749,-1000.0,0.00029895,30]
[330361416,1719333863773,-452.19047352,0.00029895,30]
[330361417,1719333863801,-1000.0,0.00029895,30]
[330361418,1719333863825,-1000.0,0.00029895,30]
[330361419,1719333863851,-1000.0,0.00029895,30]
[330361420,1719333863875,-1000.0,0.00029895,30]
[330361421,1719333863900,-1000.0,0.00029895,30]
[330361422,1719333863925,-1000.0,0.00029895,60]
[330361423,1719333863951,-1000.0,0.00029895,120]
[330361424,1719333863974,-1000.0,0.00029895,30]
[330361425,1719333863998,-1000.0,0.00029895,30]
[330361426,1719333864023,-1000.0,0.00029895,30]
[330361427,1719333864047,-1000.0,0.00029895,60]
[330361428,1719333864074,-1000.0,0.00029895,60]
[330361429,1719333864099,-1000.0,0.00029895,60]
[330361430,1719333864123,-1000.0,0.00029895,60]
[330361431,1719333864148,-1000.0,0.00029895,60]
[330361432,1719333864172,-1000.0,0.00029895,30]
[330361433,1719333864197,-1000.0,0.00029895,60]
[330361434,1719333864221,-1000.0,0.00029895,120]
[330361435,1719333864246,-1000.0,0.00029895,120]
[330361436,1719333864271,-1000.0,0.00029895,30]
[330361437,1719333864300,-1000.0,0.00029895,30]
[330361438,1719333864326,-1000.0,0.00029895,30]
[330361439,1719333864352,-1000.0,0.00029895,30]
[330361440,1719333864378,-1000.0,0.00029895,30]
[330361441,1719333864403,-1000.0,0.00029895,60]
[330361442,1719333864428,-1000.0,0.00029895,30]
[330361443,1719333864454,-1000.0,0.00029895,30]
[330361444,1719333864479,-1000.0,0.00029895,30]
[330361445,1719333864504,-1000.0,0.00029895,120]
[330361446,1719333864529,-1000.0,0.00029895,30]
[330361447,1719333864558,-1000.0,0.00029895,60]
[330361448,1719333864584,-1000.0,0.00029895,30]
[330361449,1719333864610,-1000.0,0.00029895,30]
[330361450,1719333864635,-1000.0,0.00029895,60]
[330361451,1719333864660,-1000.0,0.00029895,30]
[330361452,1719333864685,-1000.0,0.00029895,30]
[330361453,1719333864710,-1000.0,0.00029895,30]
[330361454,1719333864734,-1000.0,0.00029895,30]
[330361455,1719333864759,-1000.0,0.00029895,30]
[330361456,1719333864788,-1000.0,0.00029895,60]
[330361457,1719333864815,-1039.46,0.00029895,60]
[330361458,1719333864839,-482.35173593,0.00029895,30]
[330361459,1719333864863,-999.999992,0.00029895,120]
[330361460,1719333864889,-526.57475354,0.00029895,60]
[330361461,1719333864914,-360.49783138,0.00029895,30]
[330361462,1719333864940,-833.21929452,0.00029895,30]
[330361463,1719333864965,-1000.0,0.00029895,30]
[330361464,1719333864991,-1155.75334908,0.00029895,120]
[330361465,1719333865016,-697.73169565,0.00029895,30]
[330361466,1719333865042,-1461.4832467,0.00029895,30]
[330361467,1719333865067,-971.0547644,0.00029895,120]
[330361468,1719333865093,-1265.0879827,0.00029895,120]
[330361469,1719333865118,-804.05227059,0.00029895,60]
[330361470,1719333865143,-1035.7705176,0.00029895,120]
[330361471,1719333865167,-816.1392541,0.00029895,30]
[330361472,1719333865194,-823.94546375,0.00029895,30]
[330361473,1719333865220,-658.8308705,0.00029895,30]
[330361474,1719333865245,-344.73556778,0.00029895,120]
[330361475,1719333865270,-539.33465064,0.00029895,120]
[330361476,1719333865297,-934.75540398,0.00029895,120]
[330361477,1719333865323,-887.47816333,0.00029895,30]
[330361478,1719333865349,-1330.44949722,0.00029895,60]
[330361479,1719333865375,-197.14872926,0.00029895,30]
[330361480,1719333865402,-916.87292328,0.00029895,30]
[330361481,1719333865621,-978.27234139,0.00029895,120]
[330361482,1719333865645,-195.62050484,0.00029895,30]
[330361483,1719333865670,-226.47059766,0.00029895,31]
[330361484,1719333865695,-941.90951946,0.00029895,120]
[330361485,1719333865720,-332.59458825,0.00029895,30]
[330361486,1719333865744,-1102.62296465,0.00029895,120]
[330361487,1719333865767,-416.85815276,0.00029895,120]
[330361488,1719333865792,-500.0,0.00029895,30]
[330361489,1719333865817,-529.1842897,0.00029895,120]
[330361490,1719333865842,-811.99520477,0.00029895,120]
[330361491,1719333865865,-968.08097726,0.00029895,120]
[330361492,1719333865890,-222.69271132,0.00029895,60]
[330361493,1719333865914,-1053.65266337,0.00029895,120]
[330361494,1719333865939,-1325.99081756,0.00029895,120]
[330361495,1719333865965,-965.17797663,0.00029895,120]
[330361496,1719333865990,-1275.71652381,0.00029895,120]
[330361497,1719333866014,-189.64862649,0.00029895,120]
[330361498,1719333866038,-570.32518507,0.00029895,120]
[330361499,1719333866060,-845.64851655,0.00029895,120]
[330361500,1719333866084,-164.91230177,0.00029895,30]
[330361501,1719333866108,-257.92865036,0.00029895,30]
[330361502,1719333866131,-894.04353622,0.00029895,120]
[330361503,1719333866154,-778.2016688,0.00029895,120]
[330361504,1719333866177,-843.36860966,0.00029895,30]
[330361505,1719333866200,-3249.02081419,0.00029895,120]
[330361506,1719333866222,-157.5034442,0.00029895,120]
[330361507,1719333866245,-945.11511665,0.00029895,120]
[330361508,1719333866268,-1304.73745049,0.00029895,120]
[330361509,1719333866291,-192.77295845,0.00029895,30]
[330361510,1719333866313,-679.30426256,0.00029895,120]
[330361511,1719333866335,-761.88012196,0.00029895,30]
[330361512,1719333866359,-252.49423485,0.00029895,30]
[330361513,1719333866381,-526.14742636,0.00029895,120]
[330361514,1719333866404,-182.59864124,0.00029895,30]
[330361515,1719333866429,-517.74679687,0.00029895,120]
[330361516,1719333866452,-1398.82764602,0.00029895,120]
[330361517,1719333866475,-1482.37631056,0.00029895,30]
[330361518,1719333866498,-1391.67335682,0.00029895,30]
[330361519,1719333866520,-287.98622481,0.00029895,30]
[330361520,1719333866544,-1091.59536339,0.00029895,30]
[330361521,1719333866566,-907.25880721,0.00029895,120]
[330361522,1719333866589,-285.81206545,0.00029895,30]
[330361523,1719333866612,-190.47970053,0.00029895,120]
[330361524,1719333866635,-266.0,0.00029895,30]
[330361525,1719333866658,-621.0,0.00029895,120]
[330361526,1719333866680,-40000.0,0.00029895,120]
[330361527,1719333866702,-351.03197196,0.00029895,60]
[330361528,1719333866724,-1028.45149634,0.00029895,90]
[330361529,1719333866748,-318.22913202,0.00029895,120]
[330361530,1719333866770,-340.46372328,0.00029895,60]
[330361531,1719333866808,-66000.0,0.00029895,99]
[330361532,1719333866854,-101917.21220359,0.00029895,30]
[330361533,1719333866905,-1335.0,0.00029895,30]
[330361534,1719333866948,-1350.45,0.00029895,25]
[330361535,1719333866995,-813.21598924,0.00029895,120]
[330361536,1719333867033,-375.79350298,0.00029895,45]
[330361537,1719333867072,-124660.15668176,0.00029895,30]
[330361538,1719333867119,-302.6899,0.00029895,30]
[330361539,1719333867158,-155.87751156,0.00029895,120]
[330361540,1719333867196,-153.56532656,0.00029895,30]
[330361541,1719333867234,-8074.27717485,0.00029895,120]
[330361542,1719333867271,-332.91262116,0.00029895,120]
[330361543,1719333867307,-315355.2957007,0.00029895,30]
[330361544,1719333867344,-190.0,0.00029895,30]
[330361545,1719333867380,-190.0,0.00029895,30]
[330361546,1719333867418,-183700.0,0.00029895,120]
[330361547,1719333867459,-9192.0,0.00029895,120]
[330361548,1719333867498,-980.0,0.00029895,30]
[330361549,1719333867538,-1039.0,0.00029895,10]
[330361550,1719333867575,-1039.0,0.00029895,10]
[330361551,1719333867614,-1039.0,0.00029895,10]
[330361552,1719333867651,-1039.0,0.00029895,10]
[330361553,1719333867686,-1039.0,0.00029895,10]
[330361554,1719333867725,-1039.0,0.00029895,10]
[330361555,1719333867763,-1039.0,0.00029895,10]
[330361556,1719333867805,-1039.0,0.00029895,10]
[330361557,1719333867846,-1039.0,0.00029895,10]
[330361558,1719333867883,-1039.0,0.00029895,10]
[330361559,1719333867920,-1025.34768456,0.00029895,10]
[330361560,1719333867961,-1039.0,0.00029895,10]
[330361561,1719333868000,-190.0,0.00029895,30]
[330361562,1719333868037,-1000.0,0.00029895,30]
[330361563,1719333868076,-209.24092566,0.00029895,120]
[330361564,1719333868115,-153.931342,0.00029895,30]
[330361565,1719333868155,-153.931342,0.00029895,30]
[330361566,1719333868193,-5000.0,0.00029895,14]
[330361567,1719333868232,-5000.0,0.00029895,14]
[330361568,1719333868271,-1596.0138423,0.00029895,14]
[330361569,1719333868311,-1000.0,0.00029895,30]
[330361570,1719333868349,-1000.0,0.00029895,30]
[330361571,1719333868396,-1000.0,0.00029895,30]
[330361572,1719333868436,-1000.0,0.00029895,30]
[330361573,1719333868473,-1000.0,0.00029895,30]
[330361574,1719333868519,-1000.0,0.00029895,30]
[330361575,1719333868556,-1000.0,0.00029895,30]
[330361576,1719333868592,-1000.0,0.00029895,30]
[330361577,1719333868631,-1000.0,0.00029895,30]
[330361578,1719333868668,-1000.0,0.00029895,30]
[330361579,1719333868704,-1000.0,0.00029895,30]
[330361580,1719333868742,-1000.0,0.00029895,30]
[330361581,1719333869084,-1000.0,0.00029895,30]
[330361582,1719333869108,-1000.0,0.00029895,30]
[330361583,1719333869133,-1000.0,0.00029895,30]
[330361584,1719333869157,-1000.0,0.00029895,30]
[330361585,1719333869180,-1000.0,0.00029895,30]
[330361586,1719333869203,-1000.0,0.00029895,30]
[330361587,1719333869226,-1268.08276,0.00029895,30]
[330361588,1719333869250,-492.06874,0.00029895,14]
[330361589,1719333869272,-150.0,0.00029895,30]
[330361590,1719333878178,326.63,0.00029895,10]
[330361591,1719333890902,-333.8,0.00023831,30]
[330361592,1719333890966,-1800.0,0.00024,25]
[330361593,1719333891074,-500.0,0.00024657,30]
[330361594,1719333891099,-500.0,0.00024657,30]
[330361595,1719333891123,-500.0,0.00024657,30]
[330361596,1719333891147,-500.0,0.00024657,30]
[330361597,1719333891171,-500.0,0.00024657,30]
[330361598,1719333891194,-500.0,0.00024657,30]
[330361599,1719333891216,-500.0,0.00024657,30]
[330361600,1719333891240,-500.0,0.00024657,30]
[330361601,1719333891263,-500.0,0.00024657,30]
[330361602,1719333891287,-500.0,0.00024657,30]
[330361603,1719333891314,-500.0,0.00024657,30]
[330361604,1719333891341,-500.0,0.00024657,30]
[330361605,1719333891367,-500.0,0.00024657,30]
[330361606,1719333891390,-500.0,0.00024657,30]
[330361607,1719333891413,-500.0,0.00024657,30]
[330361608,1719333891437,-500.0,0.00024657,30]
[330361609,1719333891460,-500.0,0.00024657,30]
[330361610,1719333891484,-500.0,0.00024657,30]
[330361611,1719333891507,-500.0,0.00024657,30]
[330361612,1719333891529,-213.78035015,0.00024657,30]
[330361613,1719333891616,-667.90003883,0.00025,30]
[330361614,1719333891640,-920.33363214,0.00025,30]
[330361615,1719333891945,-250.14342915,0.00026,30]
[330361616,1719333891970,-200.0,0.0002623,120]
[330361617,1719333891997,-550.0,0.000266,15]
[330361618,1719333892025,-1000.0,0.00026849,120]
[330361619,1719333892051,-327.64634469,0.00027,120]
[330361620,1719333892074,-1800.0,0.00027,28]
[330361621,1719333892097,-550.0,0.000271,15]
[330361622,1719333892120,-562.65755539,0.0002736,120]
[330361623,1719333892142,-292.53504839,0.0002739,30]
[330361624,1719333892171,-1979.40226522,0.00027397,20]
[330361625,1719333892195,-200.0,0.00027397,60]
[330361626,1719333892220,-200.0,0.00027503,120]
[330361627,1719333892244,-550.0,0.000276,16]
[330361628,1719333892267,-1000.0,0.00027723,120]
[330361629,1719333892291,-900.0,0.00028,29]
[330361630,1719333892313,-200.0,0.00028051,120]
[330361631,1719333892337,-200.0,0.00028083,120]
[330361632,1719333892361,-550.0,0.000281,16]
[330361633,1719333892386,-200.0,0.00028598,120]
[330361634,1719333892410,-1000.0,0.00028598,120]
[330361635,1719333892432,-550.0,0.000286,17]
[330361636,1719333892456,-333.8,0.00028812,30]
[330361637,1719333892480,-1363.4264975,0.00029,30]
[330361638,1719333892503,-550.0,0.000291,17]
[330361639,1719333892528,-150.0,0.00029198,120]
[330361640,1719333892555,-550.0,0.000296,18]
[330361641,1719333892593,-329.08722432,0.0003,30]
[330361642,1719333892617,-486.0,0.0003,120]
[330361643,1719333892641,-400.60226471,0.0003,30]
[330361644,1719333892664,-505.47291908,0.0003,30]
[330361645,1719333892689,-150.0,0.00030013,120]
[330361646,1719333892713,-150.0,0.00030027,120]
[330361647,1719333892737,-550.0,0.000301,18]
[330361648,1719333892760,-200.0,0.00030137,60]
[330361649,1719333892784,-550.0,0.000306,19]
[330361650,1719333892814,-150.0,0.00030772,120]
[330361651,1719333892836,-200.0,0.00030782,120]
[330361652,1719333892862,-150.0,0.00030793,120]
[330361653,1719333892887,-250.0,0.000308,30]
[330361654,1719333892910,-251.65996798,0.00031,15]
[330361655,1719333892934,-550.0,0.000311,19]
[330361656,1719333892962,-150.0,0.00031156,120]
[330361657,1719333892987,-150.0,0.00031526,120]
[330361658,1719333893012,-550.0,0.000316,20]
[330361659,1719333893038,-655.31960619,0.00032,120]
[330361660,1719333893063,-1000.0,0.00032089,120]
[330361661,1719333893087,-550.0,0.000321,21]
[330361662,1719333893112,-150.0,0.0003214,120]
[330361663,1719333893136,-150.0,0.00032156,120]
[330361664,1719333893162,-262.77887468,0.00032393,40]
[330361665,1719333893187,-150.0,0.00032483,120]